fUSD/lending_fUSD_20240107
["ID","MTS","AMOUNT","RATE_DAILY","PERIOD"]
[310647675,1704631831781,-379.63036149,0.00022658,2]
[310647676,1704631831815,-431.83342111,0.00022658,2]
[310647677,1704631831825,-155.39,0.00022664,2]
[310647678,1704631831834,-155.45,0.00022709,2]
[310647679,1704631831845,-499.99,0.00022709,2]
[310647680,1704631831854,-3364.84745913,0.00022732,2]
[310647681,1704631831869,-400.08254087,0.00022732,2]
[310647682,1704631831879,-37.70496993,0.00022767,2]
[310647683,1704631831896,-6614.25905859,0.00022767,2]
[310647684,1704631831913,-271.48453953,0.00022767,2]
[310647685,1704631831925,-4181.52183614,0.00022767,2]
[310647686,1704631831935,-671.12238823,0.00022768,2]
[310647687,1704631831944,-155.39,0.00022787,2]
[310647688,1704631831954,-153.90777289,0.00022797,2]
[310647689,1704631831963,-37.78580165,0.00022799,2]
[310647690,1704631831980,-262.15008173,0.00022799,2]
[310647691,1704631831989,-5421.5,0.000228,2]
[310647692,1704631832001,-417.584,0.000228,2]
[310647693,1704631832011,-2091.39035827,0.000228,2]
[310647694,1704631832023,-38.60964173,0.000228,2]
[310647695,1704631832033,-26533.72854287,0.000228,2]
[310647696,1704631832045,-5007.65404292,0.000228,2]
[310647697,1704631832061,-423.98137478,0.000228,2]
[310647698,1704631832074,-12802.69556271,0.000228,2]
[310647699,1704631832087,-45172.48503394,0.000228,2]
[310647700,1704631832099,-501.80524338,0.000228,2]
[310647701,1704631832124,-2465.17915817,0.000228,2]
[310647702,1704631832135,-666.6,0.000228,2]
[310647703,1704631832147,-21269.49999999,0.000228,2]
[310647704,1704631832159,-345.65559679,0.000228,2]
[310647705,1704631832171,-454.08403346,0.000228,2]
[310647706,1704631832183,-2751.88850091,0.000228,2]
[310647707,1704631832194,-1694.64520862,0.000228,2]
[310647708,1704631832206,-1387.4499996,0.000228,2]
[310647709,1704631832217,-1450.3596528,0.000228,2]
[310647710,1704631832229,-417.61429677,0.000228,2]
[310647711,1704631832240,-258.75,0.000228,2]
[310647712,1704631832252,-2159.46645124,0.000228,2]
[310647713,1704631832263,-16693.20590105,0.000228,2]
[310647714,1704631832273,-18051.0,0.000228,2]
[310647715,1704631832282,-374.89309952,0.000228,2]
[310647716,1704631832291,-158.99797593,0.000228,2]
[310647717,1704631832301,-153.90777289,0.0002281,2]
[310647718,1704631832310,-155.45,0.00022813,2]
[310647719,1704631832319,-500.0,0.00022816,2]
[310647721,1704631832328,-200.0,0.00022816,2]
[310647723,1704631832338,-200.0,0.00022816,2]
[310647725,1704631832347,-800.0,0.00022816,2]
[310647727,1704631832357,-200.0,0.00022816,2]
[310647729,1704631832366,-153.90777289,0.00022823,2]
[310647731,1704631832376,-153.90777289,0.00022836,2]
[310647733,1704631832385,-153.90777289,0.00022848,2]
[310647735,1704631832395,-153.90777289,0.00022861,2]
[310647738,1704631832404,-153.90777289,0.00022874,2]
[310647739,1704631832413,-190.94965879,0.00022883,2]
[310647741,1704631832423,-153.90777289,0.00022887,2]
[310647744,1704631832432,-251.0626,0.00022898,2]
[310647746,1704631832442,-859.20873431,0.00022898,2]
[310647748,1704631832452,-628.6879,0.00022899,2]
[310647750,1704631832462,-25560.00606302,0.00022899,2]
[310647752,1704631832471,-500.0,0.00022899,2]
[310647754,1704631832483,-500.0,0.00022899,2]
[310647756,1704631832492,-500.0,0.00022899,2]
[310647758,1704631832502,-500.0,0.00022899,2]
[310647760,1704631832511,-545.88,0.00022899,2]
[310647762,1704631832521,-500.0,0.00022899,2]
[310647763,1704631832530,-500.0,0.00022899,2]
[310647764,1704631832539,-575.54,0.00022899,2]
[310647765,1704631832549,-500.0,0.00022899,2]
[310647766,1704631832558,-500.0,0.00022899,2]
[310647767,1704631832567,-500.0,0.00022899,2]
[310647768,1704631832576,-500.0,0.00022899,2]
[310647769,1704631832592,-500.0,0.00022899,2]
[310647770,1704631832606,-500.0,0.00022899,2]
[310647771,1704631832615,-562.95,0.00022899,2]
[310647772,1704631832624,-569.56,0.00022899,2]
[310647773,1704631832634,-500.0,0.00022899,2]
[310647774,1704631832644,-500.0,0.00022899,2]
[310647775,1704631832653,-500.0,0.00022899,2]
[310647776,1704631832662,-500.0,0.00022899,2]
[310647777,1704631832671,-500.0,0.00022899,2]
[310647778,1704631832682,-500.0,0.00022899,2]
[310647779,1704631832691,-500.0,0.00022899,2]
[310647780,1704631832702,-260.86670952,0.00022899,2]
[310647781,1704631832711,-189.24980776,0.000229,2]
[310647782,1704631832721,-3932.9545,0.000229,2]
[310647783,1704631832731,-153.90777289,0.000229,2]
[310647784,1704631832741,-24133.95,0.000229,2]
[310647785,1704631832750,-456.35624267,0.000229,2]
[310647786,1704631832760,-55555.0,0.000229,2]
[310647787,1704631832770,-374.89309952,0.000229,2]
[310647788,1704631832779,-344.76318922,0.000229,2]
[310647789,1704631832789,-155.39,0.0002291,2]
[310647790,1704631832798,-155.45,0.00022917,2]
[310647791,1704631832807,-800.0,0.00022986,2]
[310647792,1704631832817,-168.03532328,0.0002299,2]
[310647793,1704631832826,-8071.0,0.0002299,2]
[310647794,1704631832836,-168.03532328,0.0002299,2]
[310647795,1704631832845,-168.03532328,0.0002299,2]
[310647796,1704631832854,-460.34207966,0.00022997,3]
[310647797,1704631832864,-273.02922644,0.00022997,2]
[310647798,1704631832874,-186.06055977,0.00022997,2]
[310647799,1704631832883,-500.0,0.00022997,2]
[310647800,1704631832892,-543.12113448,0.00022997,2]
[310647801,1704631832902,-500.0,0.00022997,2]
[310647802,1704631832911,-537.32937286,0.00022997,2]
[310647803,1704631832924,-500.0,0.00022997,2]
[310647804,1704631832933,-193.05034655,0.00022998,3]
[310647805,1704631832943,-1241.6832936,0.00022998,2]
[310647806,1704631832954,-2189.02616561,0.00022998,2]
[310647807,1704631832963,-235.59411495,0.00022998,2]
[310647808,1704631832973,-3918.60235514,0.00022998,2]
[310647809,1704631832983,-234.34924419,0.00022998,2]
[310647810,1704631832993,-2477.71126209,0.00022998,2]
[310647811,1704631833004,-301.20793522,0.00022998,2]
[310647812,1704631833013,-269.83626346,0.00022998,2]
[310647813,1704631833303,-306.05148685,0.00022998,2]
[310647814,1704631833314,-4845.98507351,0.00022998,2]
[310647815,1704631833331,-267.5,0.00022998,2]
[310647816,1704631833343,-711.52918919,0.00022998,2]
[310647817,1704631833355,-257.69497186,0.00022998,2]
[310647818,1704631833366,-267.3,0.00022998,2]
[310647819,1704631835025,7294.11,0.00022121,2]
[310647834,1704631837722,-1988.34535135,0.00022998,2]
[310647835,1704631837846,-2188.43172934,0.00022998,2]
[310647836,1704631837855,-6238.94044513,0.00022998,2]
[310647837,1704631837865,-500.0,0.00022998,2]
[310647838,1704631837874,-197.60606903,0.00022998,2]
[310647839,1704631837883,-500.0,0.00022998,2]
[310647840,1704631837892,-500.0,0.00022998,2]
[310647841,1704631837901,-500.0,0.00022998,2]
[310647842,1704631837911,-500.0,0.00022998,2]
[310647843,1704631837921,-500.0,0.00022998,2]
[310647844,1704631837930,-500.0,0.00022998,2]
[310647845,1704631837939,-500.0,0.00022998,2]
[310647846,1704631837949,-575.54,0.00022998,2]
[310647847,1704631837959,-500.0,0.00022998,2]
[310647848,1704631837968,-500.0,0.00022998,2]
[310647849,1704631837978,-552.60859195,0.00022998,2]
[310647850,1704631837987,-500.0,0.00022998,2]
[310647851,1704631837996,-500.0,0.00022998,2]
[310647852,1704631838005,-500.0,0.00022998,2]
[310647853,1704631838015,-569.56,0.00022998,2]
[310647854,1704631838025,-500.0,0.00022998,2]
[310647855,1704631838035,-1547.80826037,0.00022999,2]
[310647856,1704631838046,-893.55721137,0.00022999,2]
[310647857,1704631838055,-105571.59489525,0.00022999,2]
[310647858,1704631838064,-503.91075651,0.00022999,2]
[310647859,1704631838074,-500.0,0.00022999,2]
[310647860,1704631838083,-500.0,0.00022999,2]
[310647861,1704631838093,-500.0,0.00022999,2]
[310647862,1704631838102,-484.72,0.00022999,2]
[310647863,1704631838111,-500.0,0.00022999,2]
[310647864,1704631838121,-500.0,0.00022999,2]
[310647865,1704631838131,-299.56,0.00022999,2]
[310647866,1704631838140,-500.0,0.00022999,2]
[310647867,1704631838150,-500.0,0.00022999,2]
[310647868,1704631838160,-500.0,0.00022999,2]
[310647869,1704631838169,-500.0,0.00022999,2]
[310647870,1704631838179,-500.0,0.00022999,2]
[310647871,1704631838189,-500.0,0.00022999,2]
[310647872,1704631838198,-500.0,0.00022999,2]
[310647873,1704631838208,-301.96,0.00022999,2]
[310647874,1704631838218,-500.0,0.00022999,2]
[310647875,1704631838227,-525.56,0.00022999,2]
[310647876,1704631838237,-327.2,0.00022999,2]
[310647877,1704631838246,-575.54,0.00022999,2]
[310647878,1704631838255,-575.54,0.00022999,2]
[310647879,1704631838264,-575.54,0.00022999,2]
[310647880,1704631838274,-575.54,0.00022999,2]
[310647881,1704631838284,-575.54,0.00022999,2]
[310647882,1704631838294,-575.54,0.00022999,2]
[310647883,1704631838304,-575.54,0.00022999,2]
[310647884,1704631838314,-575.54,0.00022999,2]
[310647885,1704631838323,-575.54,0.00022999,2]
[310647886,1704631838333,-575.54,0.00022999,2]
[310647887,1704631838343,-575.54,0.00022999,2]
[310647888,1704631838352,-575.54,0.00022999,2]
[310647889,1704631838362,-575.54,0.00022999,2]
[310647890,1704631838371,-575.54,0.00022999,2]
[310647892,1704631838381,-575.54,0.00022999,2]
[310647895,1704631838390,-575.54,0.00022999,2]
[310647898,1704631838400,-575.54,0.00022999,2]
[310647901,1704631838409,-575.54,0.00022999,2]
[310647904,1704631838419,-575.54,0.00022999,2]
[310647907,1704631838429,-575.54,0.00022999,2]
[310647909,1704631838438,-575.54,0.00022999,2]
[310647910,1704631838448,-575.58,0.00022999,2]
[310647912,1704631838458,-500.0,0.00022999,2]
[310647914,1704631838468,-561.68,0.00022999,2]
[310647917,1704631838478,-500.0,0.00022999,2]
[310647918,1704631838487,-500.0,0.00022999,2]
[310647920,1704631838497,-500.0,0.00022999,2]
[310647921,1704631838506,-614.94,0.00022999,2]
[310647922,1704631838516,-500.0,0.00022999,2]
[310647923,1704631838525,-500.0,0.00022999,2]
[310647924,1704631838535,-500.0,0.00022999,2]
[310647925,1704631838544,-500.0,0.00022999,2]
[310647926,1704631838553,-500.0,0.00022999,2]
[310647927,1704631838563,-500.0,0.00022999,2]
[310647928,1704631838572,-615.4,0.00022999,2]
[310647929,1704631838582,-569.56,0.00022999,2]
[310647930,1704631838591,-569.56,0.00022999,2]
[310647931,1704631838601,-569.56,0.00022999,2]
[310647932,1704631838610,-569.56,0.00022999,2]
[310647933,1704631838620,-569.56,0.00022999,2]
[310647934,1704631838629,-569.56,0.00022999,2]
[310647935,1704631838638,-569.56,0.00022999,2]
[310647936,1704631838647,-569.56,0.00022999,2]
[310647937,1704631838657,-569.56,0.00022999,2]
[310647938,1704631838667,-569.56,0.00022999,2]
[310647939,1704631838676,-569.56,0.00022999,2]
[310647940,1704631838685,-569.56,0.00022999,2]
[310647941,1704631838694,-569.56,0.00022999,2]
[310647942,1704631838703,-569.56,0.00022999,2]
[310647943,1704631838712,-569.56,0.00022999,2]
[310647944,1704631838722,-569.56,0.00022999,2]
[310647945,1704631838731,-569.56,0.00022999,2]
[310647946,1704631838741,-569.56,0.00022999,2]
[310647947,1704631838750,-569.56,0.00022999,2]
[310647948,1704631838759,-569.56,0.00022999,2]
[310647949,1704631838768,-569.56,0.00022999,2]
[310647950,1704631838778,-569.76,0.00022999,2]
[310647951,1704631838787,-500.0,0.00022999,2]
[310647952,1704631838796,-500.0,0.00022999,2]
[310647953,1704631838805,-500.0,0.00022999,2]
[310647954,1704631838814,-500.0,0.00022999,2]
[310647955,1704631838823,-500.0,0.00022999,2]
[310647956,1704631838832,-500.0,0.00022999,2]
[310647957,1704631838841,-500.0,0.00022999,2]
[310647958,1704631838850,-500.0,0.00022999,2]
[310647959,1704631838859,-500.0,0.00022999,2]
[310647960,1704631838873,-500.0,0.00022999,2]
[310647961,1704631838883,-500.0,0.00022999,2]
[310647962,1704631838892,-152.72,0.00022999,2]
[310647963,1704631838902,-500.0,0.00022999,2]
[310647964,1704631838911,-500.0,0.00022999,2]
[310647965,1704631838920,-500.0,0.00022999,2]
[310647966,1704631838930,-500.0,0.00022999,2]
[310647967,1704631838939,-500.0,0.00022999,2]
[310647968,1704631838949,-500.0,0.00022999,2]
[310647969,1704631838959,-500.0,0.00022999,2]
[310647970,1704631838971,-500.0,0.00022999,2]
[310647971,1704631838980,-500.0,0.00022999,2]
[310647972,1704631838988,-500.0,0.00022999,2]
[310647973,1704631838998,-500.0,0.00022999,2]
[310647974,1704631839008,-500.0,0.00022999,2]
[310647975,1704631839018,-500.0,0.00022999,2]
[310647976,1704631839027,-500.0,0.00022999,2]
[310647977,1704631839036,-500.0,0.00022999,2]
[310647978,1704631839046,-500.0,0.00022999,2]
[310647979,1704631839055,-151.32,0.00022999,2]
[310647980,1704631839064,-500.0,0.00022999,2]
[310647981,1704631839073,-500.0,0.00022999,2]
[310647982,1704631839082,-500.0,0.00022999,2]
[310647983,1704631839090,-329.72,0.00022999,2]
[310647984,1704631839099,-500.0,0.00022999,2]
[310647985,1704631839108,-500.0,0.00022999,2]
[310647986,1704631839117,-360.65,0.00022999,2]
[310647987,1704631839127,-387987.00636462,0.00023,2]
[310647988,1704631839136,-3177702.5154895,0.00023,2]
[310647989,1704631839145,-2651.9,0.00023,2]
[310647990,1704631839155,-126492.0270879,0.00023,2]
[310647991,1704631839164,-2093944.25960315,0.00023,2]
[310647992,1704631839174,-2181147.86417534,0.00023,2]
[310647993,1704631839183,-437082.88408585,0.00023,2]
[310647994,1704631839410,-7133.400015,0.00023,2]
[310647995,1704631839422,-1311.90728232,0.00023,2]
[310647997,1704631839440,-11558.39065178,0.00023,2]
[310647998,1704631839458,-563.575,0.00023,2]
[310648008,1704631840396,-371.42381321,0.000229,2]
[310648009,1704631840406,-83.13618681,0.00023,2]
[310648010,1704631840454,-1325.64,0.00023,2]
[310648025,1704631842441,328.80060866,0.00022999,10]
[310648069,1704631842827,-6755.30050113,0.00023,2]
[310648070,1704631842842,-1305.20107556,0.00023,2]
[310648071,1704631842857,-327.52,0.00023,2]
[310648072,1704631842891,-1002.09076715,0.00023,2]
[310648073,1704631842905,-3021.84503792,0.00023,2]
[310648074,1704631842951,-4638.01323963,0.00023,2]
[310648075,1704631842964,-4470.2230892,0.00023,2]
[310648076,1704631843012,-285872.15471627,0.00023,2]
[310648077,1704631843023,-128805.14425517,0.00023,2]
[310648078,1704631843033,-1065.66622533,0.00023,2]
[310648079,1704631843043,-24858.90058579,0.00023,2]
[310648084,1704631845594,375.5224848,0.00021804,2]
[310648092,1704631845798,-203.07724,0.0002277,2]
[310648093,1704631845808,-445.83912192,0.00023,2]
[310648094,1704631845821,-671.12238823,0.00023,2]
[310648095,1704631845917,-389.28099996,0.00023,2]
[310648098,1704631846369,-216829.4209022,0.00023,2]
[310648099,1704631880090,446.17403311,0.00020468,2]
[310648100,1704631891104,2917.45159608,0.00022078,2]
[310648101,1704631894291,620.21196217,0.00022078,2]
[310648102,1704631924437,564.43023196,0.00020466,2]
[310648103,1704632010514,157.34,0.0002217,2]
[310648106,1704632044070,167.97,0.00021946,2]
[310648108,1704632059231,158.01,0.00022111,2]
[310648109,1704632063996,240.71,0.00020018,2]
[310648110,1704632064198,240.71,0.00022282,2]
[310648111,1704632128903,344.36,0.0002193,2]
[310648113,1704632195082,769.92,0.00021936,2]
[310648114,1704632204609,168.67,0.00021936,2]
[310648115,1704632215638,174.23,0.00021926,2]
[310648116,1704632284171,203.0,0.00021603,2]
[310648117,1704632330620,168.52,0.00022237,2]
[310648118,1704632477209,158.01,0.000221,2]
[310648119,1704632638602,321.4,0.0002194,2]
[310648120,1704632650353,216.63,0.00020024,2]
[310648121,1704632650787,216.63,0.00022288,2]
[310648122,1704632665093,450.99,0.00021936,2]
[310648123,1704632745500,3095.0,0.000224,2]
[310648128,1704632796811,5051.0,0.000224,2]
[310648145,1704632903085,158.01,0.00022118,2]
[310648146,1704632920741,158.36,0.0002246,2]
[310648201,1704633031864,-160.29063038,0.00022494,2]
[310648203,1704633031874,-150.0,0.00022494,2]
[310648205,1704633031884,-203.0,0.00022557,2]
[310648207,1704633031894,-155.51721044,0.000227,2]
[310648209,1704633031903,-155.51721034,0.0002272,2]
[310648210,1704633031912,-155.51721034,0.0002274,2]
[310648211,1704633031921,-915.59362761,0.0002274,2]
[310648212,1704633031933,-264.0401279,0.0002274,2]
[310648213,1704633031943,-155.51721034,0.0002276,2]
[310648214,1704633031952,-280.70420003,0.00022766,2]
[310648215,1704633031961,-9.31129537,0.00022766,2]
[310648216,1704633031973,-351.36826909,0.00022766,2]
[310648217,1704633031983,-155.51721034,0.0002278,2]
[310648218,1704633031992,-7415.4868,0.000228,2]
[310648219,1704633032001,-155.51721034,0.000228,2]
[310648220,1704633032010,-500.0,0.00022816,2]
[310648221,1704633032019,-200.0,0.00022816,2]
[310648222,1704633032028,-200.0,0.00022816,2]
[310648223,1704633032037,-800.0,0.00022816,2]
[310648224,1704633032046,-496.52,0.00022816,2]
[310648225,1704633032056,-1771.98,0.00022816,2]
[310648226,1704633032065,-155.51721034,0.0002282,2]
[310648227,1704633032074,-155.51721034,0.0002284,2]
[310648228,1704633032083,-155.51721034,0.0002286,2]
[310648229,1704633032095,-155.51721034,0.0002288,2]
[310648230,1704633032105,-302.96537039,0.00022881,2]
[310648231,1704633032114,-3749.00739848,0.00022881,2]
[310648232,1704633032126,-1861.56260152,0.00022881,2]
[310648233,1704633032135,-499.99,0.00022881,2]
[310648234,1704633032145,-465.7809,0.00022898,2]
[310648235,1704633032154,-12.98347126,0.00022899,2]
[310648236,1704633032171,-4421.58569895,0.00022899,2]
[310648237,1704633032182,-13199.04796956,0.00022899,2]
[310648238,1704633032194,-642.5144948,0.00022899,2]
[310648239,1704633032205,-556.53,0.00022899,2]
[310648240,1704633032217,-1103.3,0.00022899,2]
[310648241,1704633032229,-1550.3468,0.00022899,2]
[310648242,1704633032248,-1278.82160055,0.00022899,2]
[310648243,1704633032261,-48724.05564659,0.00022899,2]
[310648245,1704633032269,-372.4234725,0.00022899,2]
[310648247,1704633032279,-1007.03605962,0.000229,2]
[310648248,1704633032290,-187.71033444,0.000229,2]
[310648249,1704633032300,-633.72,0.000229,2]
[310648250,1704633032310,-55555.0,0.000229,2]
[310648251,1704633032320,-155.51721034,0.000229,2]
[310648252,1704633032331,-5590.39,0.000229,2]
[310648253,1704633032342,-1116.32614634,0.000229,2]
[310648254,1704633032352,-200.74611805,0.000229,2]
[310648255,1704633032362,-457.83312245,0.000229,2]
[310648256,1704633032373,-321.4,0.00022918,2]
[310648257,1704633032383,-8071.0,0.00022936,2]
[310648258,1704633032393,-10174.94630601,0.0002298,2]
[310648259,1704633032404,-423.57,0.00022986,2]
[310648260,1704633032415,-490.87576478,0.00022987,2]
[310648261,1704633032426,-258.63869852,0.00022996,2]
[310648262,1704633032436,-184.22579518,0.00022996,2]
[310648263,1704633032448,-155.0,0.00022996,2]
[310648264,1704633032459,-198.85792776,0.00022996,2]
[310648265,1704633032474,-226.01977885,0.00022996,2]
[310648266,1704633032485,-155.0,0.00022996,2]
[310648267,1704633032494,-155.17020376,0.00022996,2]
[310648268,1704633032504,-158.86719736,0.00022996,2]
[310648269,1704633032515,-336.69086329,0.00022996,2]
[310648270,1704633032526,-1851.98145614,0.00022996,2]
[310648271,1704633032536,-1704.56212091,0.00022996,2]
[310648272,1704633032546,-155.85583025,0.00022996,2]
[310648273,1704633032555,-200.73115419,0.00022997,2]
[310648274,1704633032565,-843.00113502,0.00022998,2]
[310648275,1704633032575,-1141.28374699,0.00022998,2]
[310648276,1704633032586,-245.54211778,0.00022998,2]
[310648277,1704633032595,-244.85610876,0.00022998,2]
[310648278,1704633032605,-1157.84751611,0.00022998,2]
[310648279,1704633032614,-360.17751082,0.00022998,2]
[310648280,1704633032624,-372.3247722,0.00022998,2]
[310648281,1704633032634,-156.4406449,0.00022998,2]
[310648282,1704633032643,-195.24808762,0.00022998,2]
[310648283,1704633032654,-430.12467534,0.00022998,2]
[310648284,1704633032901,-343.36644218,0.00022998,2]
[310648285,1704633032911,-157.15051088,0.00022998,2]
[310648286,1704633032922,-215.21165486,0.00022998,2]
[310648287,1704633032932,-513.69778937,0.00022998,2]
[310648288,1704633032943,-1760.94594392,0.00022998,2]
[310648289,1704633032954,-161.49398076,0.00022998,2]
[310648290,1704633032964,-522.07104133,0.00022998,2]
[310648291,1704633032974,-2293.55284014,0.00022998,2]
[310648292,1704633032985,-1308.18613366,0.00022998,2]
[310648293,1704633032994,-270.62291569,0.00022998,2]
[310648294,1704633033004,-251.79727683,0.00022998,2]
[310648295,1704633033013,-317.68758824,0.00022998,2]
[310648296,1704633033023,-199.40938153,0.00022998,2]
[310648297,1704633033034,-5242.32156854,0.00022998,2]
[310648298,1704633033044,-272.38351934,0.00022998,2]
[310648299,1704633033055,-260.19540139,0.00022998,2]
[310648300,1704633033066,-1281.12239846,0.00022998,2]
[310648301,1704633033080,-2212.7993652,0.00022998,2]
[310648302,1704633033093,-16479.12041998,0.00022998,2]
[310648303,1704633033103,-218.64004931,0.00022998,2]
[310648304,1704633033115,-796.97542021,0.00022998,2]
[310648305,1704633033128,-18870.89389379,0.00022998,2]
[310648306,1704633033139,-211.57994505,0.00022998,2]
[310648307,1704633033150,-1070.38310566,0.00022998,2]
[310648308,1704633033161,-258.83583849,0.00022998,2]
[310648309,1704633033171,-360.0278767,0.00022998,2]
[310648310,1704633033181,-155.43492557,0.00022998,2]
[310648311,1704633033192,-4555.69742065,0.00022998,2]
[310648312,1704633033203,-214.17861932,0.00022998,2]
[310648313,1704633033215,-216.9505247,0.00022998,2]
[310648314,1704633033224,-266.82097281,0.00022998,2]
[310648315,1704633033235,-20365.24493856,0.00022999,2]
[310648316,1704633033245,-207.83148372,0.00022999,2]
[310648317,1704633033256,-266.93262911,0.00022999,2]
[310648318,1704633033267,-113954.18335114,0.00023,2]
[310648319,1704633033281,-21200.22402018,0.00023,2]
[310648320,1704633033298,-1477.39515843,0.00023,2]
[310648321,1704633033312,-748.76317259,0.00023,2]
[310648322,1704633033325,-14560.58050813,0.00023,2]
[310648323,1704633033340,-10978.99999995,0.00023,2]
[310648324,1704633033354,-543.29728188,0.00023,2]
[310648325,1704633033378,-529.8845438,0.00023,2]
[310648326,1704633033395,-523.08023554,0.00023,2]
[310648327,1704633033414,-2685.59285672,0.00023,2]
[310648328,1704633033429,-264.90308115,0.00023,2]
[310648363,1704633037885,-1884.44993949,0.0002298,3]
[310648364,1704633037896,-1219.48500631,0.00022999,3]
[310648365,1704633037905,-28567.03531564,0.00023,2]
[310648366,1704633037918,-1970.10659035,0.00023,2]
[310648367,1704633037940,-343.36644218,0.00023,2]
[310648368,1704633037954,-846.249995,0.00023,2]
[310648369,1704633038051,-47815.97751313,0.00023,2]
[310648370,1704633038063,-51697.70139706,0.00023,2]
[310648371,1704633038075,-202093.06369398,0.00023,2]
[310648372,1704633038087,-35854.80478082,0.00023,2]
[310648373,1704633038096,-1013.9607245,0.00023,3]
[310648374,1704633038106,-127256.75492096,0.00023,2]
[310648375,1704633038115,-86426.92406006,0.00023,2]
[310648376,1704633038127,-67274.57592913,0.00023,2]
[310648377,1704633038139,-34976.73482022,0.00023,2]
[310648378,1704633038152,-376.35719022,0.00023,2]
[310648379,1704633038164,-13065.45645089,0.00023,2]
[310648380,1704633038176,-410.76,0.00023,2]
[310648381,1704633038202,-1065429.18024561,0.00023,2]
[310648382,1704633038212,-352274.49980017,0.00023,2]
[310648383,1704633038222,-18189.79933268,0.00023,2]
[310648384,1704633038234,-21063.87560074,0.00023,2]
[310648385,1704633038273,-12300.0002797,0.00023,2]
[310648386,1704633038284,-625.05984695,0.00023,2]
[310648387,1704633038302,-7137.26385715,0.00023,2]
[310648388,1704633038313,-41170.33411353,0.00023,2]
[310648389,1704633038330,-404.99995,0.00023,2]
[310648390,1704633038342,-431.95013453,0.00023,2]
[310648391,1704633038354,-32775.49880292,0.00023,2]
[310648424,1704633040465,-1247.78481848,0.000229,2]
[310648425,1704633040475,-3020.2044129,0.00023,2]
[310648426,1704633040486,-988.67004795,0.00023,2]
[310648427,1704633040499,-527.804099,0.00023,2]
[310648428,1704633040511,-269.2302333,0.00023,2]
[310648429,1704633040524,-917.57686995,0.00023,2]
[310648430,1704633040535,-88500.0,0.00023,2]
[310648431,1704633040548,-1356.54202793,0.00023,2]
[310648432,1704633040560,-3064.64211845,0.00023,2]
[310648433,1704633040677,-7285.2639484,0.00023,2]
[310648434,1704633040688,-465.46861544,0.00023,2]
[310648435,1704633040700,-3254.98910633,0.00023,2]
[310648436,1704633041172,-126340.28039556,0.00023,2]
[310648437,1704633041184,-62770.28043428,0.00023,2]
[310648438,1704633041234,-16649.9999,0.00023,2]
[310648439,1704633041246,-11319.50737116,0.00023,2]
[310648440,1704633041257,-2333.6717928,0.00023,2]
[310648441,1704633041270,-260.8434565,0.00023,2]
[310648442,1704633041281,-1006.632,0.00023,2]
[310648443,1704633041292,-2134.05,0.00023,2]
[310648444,1704633041304,-3689.03800843,0.00023,2]
[310648445,1704633041316,-1223.21640125,0.00023,2]
[310648446,1704633041327,-349.95,0.00023,2]
[310648447,1704633041338,-1148.68411142,0.00023,2]
[310648448,1704633041351,-370.47475169,0.00023,2]
[310648449,1704633041362,-345.381997,0.00023,2]
[310648450,1704633041373,-398.356242,0.00023,2]
[310648451,1704633041384,-1281.51,0.00023,2]
[310648452,1704633041395,-10426.8929,0.00023,2]
[310648453,1704633041407,-29921.77473437,0.00023,2]
[310648454,1704633041419,-3494.07937562,0.00023,2]
[310648455,1704633041428,-44923.92062447,0.00023,2]
[310648456,1704633041440,-307.748,0.00023,2]
[310648457,1704633041452,-6612.2428,0.00023,2]